fUSD/lending_fUSD_20250301
["ID","MTS","AMOUNT","RATE_DAILY","PERIOD"]
[354945368,1740838233502,-651.59,0.00027397,2]
[354945369,1740838233511,-500.0,0.00027397,2]
[354945370,1740838233521,-524.52,0.00027397,2]
[354945371,1740838233532,-500.0,0.00027397,2]
[354945372,1740838233542,-632.76,0.00027397,2]
[354945373,1740838233552,-500.0,0.00027397,2]
[354945374,1740838233563,-565.6,0.00027397,2]
[354945375,1740838233573,-752.23,0.00027397,2]
[354945376,1740838233583,-611.65,0.00027397,2]
[354945377,1740838233597,-500.0,0.00027397,2]
[354945378,1740838233608,-500.0,0.00027397,2]
[354945379,1740838233618,-640.6,0.00027397,2]
[354945380,1740838233628,-854.6,0.00027397,2]
[354945381,1740838233638,-500.0,0.00027397,2]
[354945382,1740838233648,-672.73,0.00027397,2]
[354945383,1740838233659,-738.31,0.00027397,2]
[354945384,1740838233670,-513.42,0.00027397,2]
[354945385,1740838233681,-658.74,0.00027397,2]
[354945386,1740838233691,-805.08316739,0.00027397,2]
[354945387,1740838233706,-299.17683261,0.00027397,2]
[354945388,1740838233717,-270.91391645,0.00027397,2]
[354945389,1740838233733,-331.56608355,0.00027397,2]
[354945390,1740838233743,-500.0,0.00027397,2]
[354945391,1740838233753,-503.47,0.00027397,2]
[354945392,1740838233763,-500.0,0.00027397,2]
[354945393,1740838233772,-506.74,0.00027397,2]
[354945394,1740838233782,-108.22391845,0.00027397,2]
[354945395,1740838233794,-391.77608155,0.00027397,2]
[354945396,1740838233804,-720.95,0.00027397,2]
[354945397,1740838233813,-209.49421424,0.00027397,2]
[354945398,1740838233829,-420.79578576,0.00027397,2]
[354945399,1740838233839,-747.06,0.00027397,2]
[354945400,1740838233849,-500.0,0.00027397,2]
[354945401,1740838233859,-341.12920438,0.00027397,2]
[354945402,1740838233871,-158.87079562,0.00027397,2]
[354945403,1740838233880,-500.0,0.00027397,2]
[354945404,1740838233891,-124.06920438,0.00027397,2]
[354945405,1740838233905,-488.75079562,0.00027397,2]
[354945406,1740838233914,-231.57920438,0.00027397,2]
[354945407,1740838233926,-300.3,0.00027397,2]
[354945408,1740838233939,-349.76079562,0.00027397,2]
[354945409,1740838233949,-626.1,0.00027397,2]
[354945410,1740838233961,-500.0,0.00027397,2]
[354945411,1740838233971,-1190.98,0.00027397,2]
[354945412,1740838233981,-500.0,0.00027397,2]
[354945413,1740838233991,-600.85,0.00027397,2]
[354945414,1740838234000,-397.26994915,0.00027397,2]
[354945415,1740838234012,-157.84005085,0.00027397,2]
[354945416,1740838234022,-527.84,0.00027397,2]
[354945417,1740838234032,-30.02315672,0.00027397,2]
[354945418,1740838234046,-780.81684328,0.00027397,2]
[354945419,1740838234057,-645.68,0.00027397,2]
[354945420,1740838234068,-500.0,0.00027397,2]
[354945421,1740838234078,-500.0,0.00027397,2]
[354945422,1740838234088,-721.69,0.00027397,2]
[354945423,1740838234098,-755.32,0.00027397,2]
[354945424,1740838234107,-475.52506628,0.00027397,2]
[354945425,1740838234119,-908.06493372,0.00027397,2]
[354945426,1740838234129,-500.0,0.00027397,2]
[354945427,1740838234139,-500.0,0.00027397,2]
[354945428,1740838234150,-500.0,0.00027397,2]
[354945429,1740838234159,-644.31,0.00027397,2]
[354945430,1740838234169,-527.05,0.00027397,2]
[354945431,1740838234179,-806.56,0.00027397,2]
[354945432,1740838234189,-606.14,0.00027397,2]
[354945433,1740838234199,-538.87,0.00027397,2]
[354945434,1740838234210,-300.0,0.00027397,2]
[354945435,1740838234219,-500.0,0.00027397,2]
[354945436,1740838234229,-1045.24,0.00027397,2]
[354945437,1740838234240,-500.0,0.00027397,2]
[354945438,1740838234249,-500.0,0.00027397,2]
[354945439,1740838234258,-980.17,0.00027397,2]
[354945440,1740838234268,-999.63,0.00027397,2]
[354945441,1740838234277,-500.0,0.00027397,2]
[354945442,1740838234287,-500.0,0.00027397,2]
[354945443,1740838234297,-500.0,0.00027397,2]
[354945444,1740838234307,-500.0,0.00027397,2]
[354945445,1740838234319,-502.21,0.00027397,2]
[354945446,1740838234331,-695.81,0.00027397,2]
[354945447,1740838234342,-817.96,0.00027397,2]
[354945448,1740838234353,-500.0,0.00027397,2]
[354945449,1740838234367,-865.63,0.00027397,2]
[354945450,1740838234377,-500.0,0.00027397,2]
[354945451,1740838234386,-631.18,0.00027397,2]
[354945452,1740838234396,-724.87,0.00027397,2]
[354945453,1740838234406,-791.85,0.00027397,2]
[354945454,1740838234417,-928.45,0.00027397,2]
[354945455,1740838234426,-1117.72,0.00027397,2]
[354945456,1740838234436,-500.0,0.00027397,2]
[354945457,1740838234447,-500.0,0.00027397,2]
[354945458,1740838234456,-992.89,0.00027397,2]
[354945459,1740838234466,-500.0,0.00027397,2]
[354945460,1740838234475,-500.0,0.00027397,2]
[354945461,1740838234486,-755.18,0.00027397,2]
[354945462,1740838234495,-1111.64,0.00027397,2]
[354945463,1740838234505,-726.19,0.00027397,2]
[354945464,1740838234515,-500.0,0.00027397,2]
[354945465,1740838234524,-500.0,0.00027397,2]
[354945466,1740838234535,-809.63,0.00027397,2]
[354945467,1740838234544,-369.23967944,0.00027397,2]
[354945468,1740838234554,-454.45,0.00027397,2]
[354945469,1740838234564,-748.36,0.00027397,2]
[354945470,1740838234574,-549.26800393,0.00027397,2]
[354945471,1740838234584,-500.0,0.00027397,2]
[354945472,1740838234594,-500.0,0.00027397,2]
[354945473,1740838234607,-500.0,0.00027397,2]
[354945474,1740838234617,-163.60577625,0.00027397,2]
[354945475,1740838234627,-574.87,0.00027397,2]
[354945476,1740838234637,-542.82,0.00027397,2]
[354945477,1740838234647,-500.0,0.00027397,2]
[354945478,1740838234657,-536.48,0.00027397,2]
[354945479,1740838234666,-500.0,0.00027397,2]
[354945480,1740838234678,-500.0,0.00027397,2]
[354945481,1740838234688,-500.0,0.00027397,2]
[354945482,1740838234697,-662.69,0.00027397,2]
[354945483,1740838234706,-889.39,0.00027397,2]
[354945484,1740838234716,-500.0,0.00027397,2]
[354945485,1740838234726,-725.05,0.00027397,2]
[354945486,1740838234735,-517.46,0.00027397,2]
[354945487,1740838234745,-1179.59,0.00027397,2]
[354945488,1740838234754,-500.0,0.00027397,2]
[354945489,1740838234764,-965.8,0.00027397,2]
[354945490,1740838234773,-644.51,0.00027397,2]
[354945491,1740838234783,-512.48,0.00027397,2]
[354945492,1740838234792,-1279.58,0.00027397,2]
[354945493,1740838234803,-389.69991786,0.00027397,2]
[354945494,1740838234812,-872.58,0.00027397,2]
[354945495,1740838234822,-500.0,0.00027397,2]
[354945496,1740838234833,-238.70931955,0.00027397,2]
[354945497,1740838234842,-1347.37,0.00027397,2]
[354945498,1740838234852,-500.0,0.00027397,2]
[354945499,1740838234863,-588.99,0.00027397,2]
[354945500,1740838234873,-500.0,0.00027397,2]
[354945501,1740838234883,-527.7,0.00027397,2]
[354945502,1740838234892,-741.03,0.00027397,2]
[354945503,1740838234902,-609.76,0.00027397,2]
[354945504,1740838234912,-2597.484083,0.00027397,2]
[354945505,1740838234922,-500.0,0.00027397,2]
[354945506,1740838234931,-500.0,0.00027397,2]
[354945507,1740838234940,-166.84957836,0.00027397,2]
[354945508,1740838234950,-500.0,0.00027397,2]
[354945509,1740838234960,-650.37,0.00027397,2]
[354945510,1740838234970,-541.66,0.00027397,2]
[354945511,1740838234979,-153.088695,0.00027397,2]
[354945512,1740838234989,-809.22,0.00027397,2]
[354945513,1740838234999,-908.98,0.00027397,2]
[354945514,1740838235009,-500.0,0.00027397,2]
[354945515,1740838235018,-150.369306,0.00027397,2]
[354945516,1740838235028,-500.0,0.00027397,2]
[354945517,1740838235038,-416.69759109,0.00027397,2]
[354945518,1740838235047,-500.0,0.00027397,2]
[354945519,1740838235057,-500.0,0.00027397,2]
[354945520,1740838235067,-788.13,0.00027397,2]
[354945521,1740838235077,-581.55,0.00027397,2]
[354945522,1740838235088,-777.72,0.00027397,2]
[354945523,1740838235098,-565.86,0.00027397,2]
[354945524,1740838235108,-763.99,0.00027397,2]
[354945525,1740838235118,-500.0,0.00027397,2]
[354945526,1740838235127,-500.0,0.00027397,2]
[354945527,1740838235138,-500.0,0.00027397,2]
[354945528,1740838235148,-629.32,0.00027397,2]
[354945529,1740838235157,-631.05,0.00027397,2]
[354945530,1740838235167,-1130.27,0.00027397,2]
[354945531,1740838235177,-500.0,0.00027397,2]
[354945532,1740838235186,-500.0,0.00027397,2]
[354945533,1740838235196,-500.0,0.00027397,2]
[354945534,1740838235205,-500.0,0.00027397,2]
[354945535,1740838235215,-500.0,0.00027397,2]
[354945536,1740838235225,-500.0,0.00027397,2]
[354945537,1740838235234,-522.5,0.00027397,2]
[354945538,1740838235244,-2003.353535,0.00027397,2]
[354945539,1740838235255,-500.0,0.00027397,2]
[354945540,1740838235264,-1166.97,0.00027397,2]
[354945541,1740838235275,-500.0,0.00027397,2]
[354945542,1740838235284,-514.42,0.00027397,2]
[354945543,1740838235294,-773.7,0.00027397,2]
[354945544,1740838235304,-628.3,0.00027397,2]
[354945545,1740838235313,-624.02,0.00027397,2]
[354945546,1740838235323,-881.61,0.00027397,2]
[354945547,1740838235333,-574.36,0.00027397,2]
[354945548,1740838235343,-1345.32,0.00027397,2]
[354945549,1740838235353,-306.51939719,0.00027397,2]
[354945550,1740838235363,-699.03,0.00027397,2]
[354945551,1740838235372,-832.36,0.00027397,2]
[354945552,1740838235382,-500.0,0.00027397,2]
[354945553,1740838235392,-599.35,0.00027397,2]
[354945554,1740838235402,-967.96,0.00027397,2]
[354945555,1740838235411,-500.0,0.00027397,2]
[354945556,1740838235420,-500.0,0.00027397,2]
[354945557,1740838235430,-500.0,0.00027397,2]
[354945558,1740838235440,-275.43306593,0.00027397,2]
[354945559,1740838235449,-841.05,0.00027397,2]
[354945560,1740838235459,-500.0,0.00027397,2]
[354945561,1740838235469,-1362.66,0.00027397,2]
[354945562,1740838235478,-582.48,0.00027397,2]
[354945563,1740838235488,-500.0,0.00027397,2]
[354945564,1740838235497,-500.0,0.00027397,2]
[354945565,1740838235507,-786.87,0.00027397,2]
[354945566,1740838235516,-1070.62,0.00027397,2]
[354945567,1740838235527,-802.62,0.00027397,2]
[354945568,1740838235537,-1362.76,0.00027397,2]
[354945569,1740838235546,-570.47,0.00027397,2]
[354945570,1740838235555,-668.47,0.00027397,2]
[354945571,1740838235564,-500.0,0.00027397,2]
[354945572,1740838235573,-698.6,0.00027397,2]
[354945573,1740838235583,-3115.62,0.00027397,2]
[354945574,1740838235593,-500.0,0.00027397,2]
[354945575,1740838235605,-500.0,0.00027397,2]
[354945576,1740838235615,-924.56,0.00027397,2]
[354945577,1740838235625,-728.35,0.00027397,2]
[354945578,1740838235635,-500.0,0.00027397,2]
[354945579,1740838235646,-612.07,0.00027397,2]
[354945580,1740838235655,-1158.6,0.00027397,2]
[354945581,1740838235665,-852.98,0.00027397,2]
[354945582,1740838235676,-652.51,0.00027397,2]
[354945583,1740838235686,-930.37,0.00027397,2]
[354945584,1740838235695,-551.31,0.00027397,2]
[354945585,1740838235705,-369.24418289,0.00027397,2]
[354945586,1740838235716,-572.88,0.00027397,2]
[354945587,1740838235726,-960.67,0.00027397,2]
[354945588,1740838235736,-1009.65,0.00027397,2]
[354945589,1740838235746,-670.64,0.00027397,2]
[354945590,1740838235755,-621.8,0.00027397,2]
[354945591,1740838235766,-500.0,0.00027397,2]
[354945592,1740838235776,-500.0,0.00027397,2]
[354945593,1740838235785,-903.51,0.00027397,2]
[354945594,1740838235795,-694.15,0.00027397,2]
[354945595,1740838235804,-500.0,0.00027397,2]
[354945596,1740838235814,-1091.72,0.00027397,2]
[354945597,1740838235823,-534.97,0.00027397,2]
[354945598,1740838235833,-1180.54,0.00027397,2]
[354945599,1740838235843,-500.0,0.00027397,2]
[354945600,1740838235853,-644.85,0.00027397,2]
[354945601,1740838235863,-559.09,0.00027397,2]
[354945602,1740838235872,-562.59,0.00027397,2]
[354945603,1740838235882,-792.67,0.00027397,2]
[354945604,1740838235892,-500.0,0.00027397,2]
[354945605,1740838235902,-500.0,0.00027397,2]
[354945606,1740838235911,-815.11,0.00027397,2]
[354945607,1740838235921,-1082.79,0.00027397,2]
[354945608,1740838235931,-1055.02,0.00027397,2]
[354945609,1740838235941,-500.0,0.00027397,2]
[354945610,1740838235951,-201.1052461,0.00027397,2]
[354945611,1740838235962,-711.86,0.00027397,2]
[354945612,1740838235973,-500.0,0.00027397,2]
[354945613,1740838235982,-500.0,0.00027397,2]
[354945614,1740838235992,-500.0,0.00027397,2]
[354945615,1740838236002,-1666.76,0.00027397,2]
[354945616,1740838236011,-500.0,0.00027397,2]
[354945617,1740838236021,-765.83,0.00027397,2]
[354945618,1740838236030,-1507.32,0.00027397,2]
[354945619,1740838236044,-500.0,0.00027397,2]
[354945620,1740838236054,-561.84,0.00027397,2]
[354945621,1740838236063,-579.06,0.00027397,2]
[354945622,1740838236073,-859.38,0.00027397,2]
[354945623,1740838236082,-9649.23,0.00027397,2]
[354945624,1740838236093,-805.52,0.00027397,2]
[354945625,1740838236103,-602.98,0.00027397,2]
[354945626,1740838236112,-500.0,0.00027397,2]
[354945627,1740838236122,-500.0,0.00027397,2]
[354945628,1740838236132,-960.03,0.00027397,2]
[354945629,1740838236142,-500.0,0.00027397,2]
[354945630,1740838236152,-973.73,0.00027397,2]
[354945631,1740838236163,-924.74,0.00027397,2]
[354945632,1740838236173,-3492.81,0.00027397,2]
[354945633,1740838236183,-1373.15,0.00027397,2]
[354945634,1740838236192,-500.0,0.00027397,2]
[354945635,1740838236202,-1073.12,0.00027397,2]
[354945636,1740838236213,-1135.88,0.00027397,2]
[354945637,1740838236222,-500.0,0.00027397,2]
[354945638,1740838236232,-558.67,0.00027397,2]
[354945639,1740838236243,-500.0,0.00027397,2]
[354945640,1740838236253,-1027.26,0.00027397,2]
[354945641,1740838236263,-500.0,0.00027397,2]
[354945642,1740838236273,-1260.8,0.00027397,2]
[354945643,1740838236283,-959.11,0.00027397,2]
[354945644,1740838236293,-873.56,0.00027397,2]
[354945645,1740838236303,-573.74,0.00027397,2]
[354945646,1740838236313,-739.38,0.00027397,2]
[354945647,1740838236323,-1144.39,0.00027397,2]
[354945648,1740838236334,-752.83,0.00027397,2]
[354945649,1740838236343,-1111.14,0.00027397,2]
[354945650,1740838236354,-2772.78,0.00027397,2]
[354945651,1740838236363,-579.52,0.00027397,2]
[354945652,1740838236374,-1140.24,0.00027397,2]
[354945653,1740838236384,-965.19,0.00027397,2]
[354945654,1740838236394,-500.0,0.00027397,2]
[354945655,1740838236403,-1461.37,0.00027397,2]
[354945656,1740838236413,-6175.24,0.00027397,2]
[354945657,1740838236423,-500.0,0.00027397,2]
[354945658,1740838236434,-1702.96,0.00027397,2]
[354945659,1740838236444,-1607.75,0.00027397,2]
[354945660,1740838236453,-500.0,0.00027397,2]
[354945661,1740838236464,-692.11,0.00027397,2]
[354945662,1740838236474,-1403.06,0.00027397,2]
[354945663,1740838236485,-1154.81,0.00027397,2]
[354945664,1740838236495,-500.0,0.00027397,2]
[354945665,1740838236505,-558.59352141,0.00027397,2]
[354945666,1740838236515,-1986.25,0.00027397,2]
[354945667,1740838236524,-1523.59,0.00027397,2]
[354945668,1740838236534,-1221.88,0.00027397,2]
[354945669,1740838236543,-500.0,0.00027397,2]
[354945670,1740838236559,-305.35514443,0.00027397,2]
[354945671,1740838236568,-500.0,0.00027397,2]
[354945672,1740838236578,-866.18,0.00027397,2]
[354945673,1740838236588,-500.0,0.00027397,2]
[354945674,1740838236600,-614.83,0.00027397,2]
[354945675,1740838236610,-667.76,0.00027397,2]
[354945676,1740838236619,-500.0,0.00027397,2]
[354945677,1740838236630,-884.97,0.00027397,2]
[354945678,1740838236640,-588.32,0.00027397,2]
[354945679,1740838236650,-500.0,0.00027397,2]
[354945680,1740838236660,-541.9,0.00027397,2]
[354945681,1740838236670,-500.0,0.00027397,2]
[354945682,1740838236680,-661.2,0.00027397,2]
[354945683,1740838236690,-3143.31,0.00027397,2]
[354945684,1740838236700,-525.57,0.00027397,2]
[354945685,1740838236709,-500.0,0.00027397,2]
[354945686,1740838236719,-288.37988713,0.00027397,2]
[354945687,1740838236729,-500.0,0.00027397,2]
[354945688,1740838236739,-500.0,0.00027397,2]
[354945689,1740838236749,-619.24,0.00027397,2]
[354945690,1740838236759,-1912.72,0.00027397,2]
[354945691,1740838236769,-2052.43,0.00027397,2]
[354945692,1740838236778,-1327.53,0.00027397,2]
[354945693,1740838236788,-1395.29,0.00027397,2]
[354945694,1740838236798,-500.0,0.00027397,2]
[354945695,1740838236810,-968.57,0.00027397,2]
[354945696,1740838236830,-1870.47,0.00027397,2]
[354945697,1740838236849,-630.73,0.00027397,2]
[354945698,1740838236859,-2366.34,0.00027397,2]
[354945699,1740838236869,-201.03724649,0.00027397,2]
[354945700,1740838236879,-1312.79,0.00027397,2]
[354945701,1740838236888,-1981.8,0.00027397,2]
[354945702,1740838236899,-696.42,0.00027397,2]
[354945703,1740838236908,-1402.72,0.00027397,2]
[354945704,1740838236918,-604.62,0.00027397,2]
[354945705,1740838236928,-500.0,0.00027397,2]
[354945706,1740838236938,-1615.21,0.00027397,2]
[354945707,1740838236948,-500.0,0.00027397,2]
[354945708,1740838236958,-1855.95,0.00027397,2]
[354945709,1740838236968,-2392.11,0.00027397,2]
[354945710,1740838236978,-1459.07,0.00027397,2]
[354945711,1740838236987,-500.0,0.00027397,2]
[354945712,1740838236997,-500.0,0.00027397,2]
[354945713,1740838237007,-1936.07,0.00027397,2]
[354945714,1740838237283,-1089.86,0.00027397,2]
[354945715,1740838237295,-943.02,0.00027397,2]
[354945716,1740838237305,-1188.88,0.00027397,2]
[354945717,1740838237315,-1424.02,0.00027397,2]
[354945718,1740838237325,-500.0,0.00027397,2]
[354945719,1740838237335,-712.72,0.00027397,2]
[354945720,1740838237346,-500.0,0.00027397,120]
[354945721,1740838237356,-626.67,0.00027397,2]
[354945722,1740838237365,-972.22,0.00027397,2]
[354945723,1740838237375,-977.03,0.00027397,2]
[354945724,1740838237385,-2132.45,0.00027397,2]
[354945725,1740838237395,-2017.47,0.00027397,2]
[354945726,1740838237405,-1048.48,0.00027397,2]
[354945727,1740838237415,-645.41,0.00027397,2]
[354945728,1740838237424,-500.0,0.00027397,2]
[354945729,1740838237434,-529.87890265,0.00027397,2]
[354945730,1740838237444,-500.0,0.00027397,2]
[354945731,1740838237454,-1094.07,0.00027397,2]
[354945732,1740838237465,-1938.02,0.00027397,2]
[354945733,1740838237475,-689.7,0.00027397,2]
[354945734,1740838237486,-1765.35,0.00027397,2]
[354945735,1740838237495,-500.0,0.00027397,2]
[354945736,1740838237506,-871.41,0.00027397,2]
[354945737,1740838237516,-1081.87,0.00027397,2]
[354945738,1740838237526,-574.59596271,0.00027397,2]
[354945739,1740838237536,-500.0,0.00027397,2]
[354945740,1740838237546,-582.15,0.00027397,2]
[354945741,1740838237556,-508.68,0.00027397,2]
[354945742,1740838237567,-4101.02,0.00027397,2]
[354945743,1740838237576,-2749.18,0.00027397,2]
[354945744,1740838237586,-500.0,0.00027397,2]
[354945745,1740838237596,-1525.2,0.00027397,2]
[354945746,1740838237609,-1290.63,0.00027397,2]
[354945747,1740838237619,-696.5,0.00027397,2]
[354945748,1740838237628,-1181.46,0.00027397,2]
[354945749,1740838237638,-500.0,0.00027397,2]
[354945750,1740838237648,-500.0,0.00027397,2]
[354945751,1740838237658,-643.48,0.00027397,2]
[354945752,1740838237668,-1012.03,0.00027397,2]
[354945753,1740838237682,-1992.61,0.00027397,2]
[354945754,1740838237692,-726.69,0.00027397,2]
[354945755,1740838237702,-500.0,0.00027397,2]
[354945756,1740838237713,-529.82,0.00027397,2]
[354945757,1740838237723,-500.0,0.00027397,2]
[354945758,1740838237733,-531.63,0.00027397,2]
[354945759,1740838237742,-1071.46,0.00027397,2]
[354945760,1740838237752,-1050.69,0.00027397,2]
[354945761,1740838237762,-1023.82,0.00027397,2]
[354945762,1740838237772,-1290.69,0.00027397,2]
[354945763,1740838237783,-1267.77,0.00027397,2]
[354945764,1740838237793,-834.44,0.00027397,2]
[354945765,1740838237803,-1964.82,0.00027397,2]
[354945766,1740838237814,-746.87,0.00027397,2]
[354945767,1740838237824,-1242.94,0.00027397,2]
[354945768,1740838237834,-206.70826756,0.00027397,2]
[354945769,1740838237844,-567.83,0.00027397,2]
[354945770,1740838237853,-1369.29,0.00027397,2]
[354945771,1740838237864,-1350.19,0.00027397,2]
[354945772,1740838237874,-16334.04,0.00027397,2]
[354945773,1740838237883,-504.62,0.00027397,2]
[354945774,1740838237893,-573.82,0.00027397,2]
[354945775,1740838237903,-801.54,0.00027397,2]
[354945776,1740838237913,-500.0,0.00027397,2]
[354945777,1740838237922,-1222.19,0.00027397,2]
[354945778,1740838237931,-680.17,0.00027397,2]
[354945779,1740838237941,-512.9,0.00027397,2]
[354945780,1740838237951,-929.58,0.00027397,2]
[354945781,1740838237961,-518.1,0.00027397,2]
[354945782,1740838237971,-1523.64,0.00027397,2]
[354945783,1740838237981,-1263.69,0.00027397,2]
[354945784,1740838237991,-2167.42,0.00027397,2]
[354945785,1740838238000,-500.0,0.00027397,2]
[354945786,1740838238011,-581.67,0.00027397,2]
[354945787,1740838238020,-500.0,0.00027397,2]
[354945788,1740838238030,-520.37,0.00027397,2]
[354945789,1740838238040,-5512.69,0.00027397,2]
[354945790,1740838238050,-500.0,0.00027397,2]
[354945791,1740838238060,-776.45,0.00027397,2]
[354945792,1740838238070,-1482.91,0.00027397,2]
[354945793,1740838238079,-571.84,0.00027397,2]
[354945794,1740838238089,-1493.42,0.00027397,2]
[354945795,1740838238099,-805.63,0.00027397,2]
[354945796,1740838238109,-500.0,0.00027397,2]
[354945797,1740838238119,-543.09,0.00027397,2]
[354945798,1740838238129,-500.0,0.00027397,2]
[354945799,1740838238139,-990.72,0.00027397,2]
[354945800,1740838238149,-538.78,0.00027397,2]
[354945801,1740838238159,-1422.04,0.00027397,2]
[354945803,1740838238169,-1804.4,0.00027397,2]
[354945804,1740838238179,-500.0,0.00027397,2]
[354945806,1740838238188,-1537.5,0.00027397,2]
[354945807,1740838238199,-500.0,0.00027397,2]
[354945808,1740838238208,-150.99,0.00027397,2]
[354945809,1740838238219,-150.0,0.00027414,7]
[354945810,1740838238230,-454.73266836,0.0002748,2]
[354945811,1740838238240,-2576.15983649,0.0002748,2]
[354945812,1740838238251,-607.76,0.00027532,2]
[354945813,1740838238262,-454.73266836,0.00027662,2]
[354945814,1740838238273,-2576.15983649,0.00027662,2]
[354945815,1740838238284,-156.657896,0.0002767,2]
[354945816,1740838238294,-162.6103654,0.0002767,2]
[354945817,1740838238304,-776.99,0.0002767,2]
[354945818,1740838238315,-500.0,0.0002767,2]
[354945819,1740838238325,-901.47,0.0002767,2]
[354945820,1740838238335,-648.23,0.0002767,2]
[354945821,1740838238345,-647.48,0.0002767,2]
[354945822,1740838238356,-1728.55,0.0002767,2]
[354945823,1740838238366,-1385.38,0.0002767,2]
[354945824,1740838238376,-1899.5,0.0002767,2]
[354945825,1740838238385,-1661.64,0.0002767,2]
[354945826,1740838238396,-537.76,0.0002767,2]
[354945827,1740838238406,-31882.46,0.0002767,2]
[354945828,1740838238415,-500.0,0.0002767,2]
[354945829,1740838238425,-1956.12,0.0002767,2]
[354945830,1740838238434,-5041.79,0.0002767,2]
[354945831,1740838238445,-22270.82,0.0002767,2]
[354945832,1740838238455,-570.95,0.0002767,2]
[354945833,1740838238466,-3921.56,0.0002767,2]
[354945834,1740838238477,-500.0,0.0002767,2]
[354945835,1740838238488,-500.0,0.0002767,2]
[354945836,1740838238499,-6856.67,0.0002767,2]
[354945837,1740838238509,-1349.91,0.0002767,2]
[354945838,1740838238520,-500.0,0.0002767,2]
[354945839,1740838238530,-712.83,0.00027671,2]
[354945840,1740838238541,-715.8,0.00027671,2]
[354945841,1740838238550,-500.0,0.00027671,2]
[354945842,1740838238560,-615.44,0.00027671,2]
[354945843,1740838238570,-500.0,0.00027671,2]
[354945844,1740838238580,-500.0,0.00027671,2]
[354945845,1740838238589,-669.45,0.00027671,2]
[354945846,1740838238603,-335.47870398,0.00027671,2]
[354945847,1740838238612,-500.0,0.00027671,2]
[354945848,1740838238622,-705.8,0.00027671,2]
[354945849,1740838238632,-500.0,0.00027671,2]
[354945850,1740838238643,-500.0,0.00027671,2]
[354945851,1740838238653,-598.68,0.00027671,2]
[354945852,1740838238663,-500.0,0.00027671,2]
[354945853,1740838238673,-651.59,0.00027671,2]
[354945854,1740838238684,-276.509548,0.00027671,2]
[354945855,1740838238695,-524.52,0.00027671,2]
[354945856,1740838238705,-648.86146237,0.00027671,2]
[354945857,1740838238716,-632.76,0.00027671,2]
[354945858,1740838238726,-500.0,0.00027671,2]
[354945859,1740838238736,-565.6,0.00027671,2]
[354945860,1740838238745,-752.23,0.00027671,2]
[354945861,1740838238755,-611.65,0.00027671,2]
[354945862,1740838238765,-500.0,0.00027671,2]
[354945863,1740838238776,-500.0,0.00027671,2]
[354945864,1740838238786,-640.6,0.00027671,2]
[354945866,1740838238796,-854.6,0.00027671,2]
[354945867,1740838238805,-500.0,0.00027671,2]
[354945869,1740838238815,-672.73,0.00027671,2]
[354945871,1740838238825,-738.31,0.00027671,2]
[354945873,1740838238835,-513.42,0.00027671,2]